bitfinex-derivatives/quotes_ETHF0:USTF0_20250824
["timestamp","ask_amount","ask_price","bid_price","bid_amount"]
[1756060375540,0.4676029,4938.9,4938.5,0.6844]
[1756060375741,1.1896829,4938.8,4938.6,0.3363]
[1756060375942,0.4676029,4938.7,4938.6,1.0479]
[1756060376139,0.4676029,4938.7,4938.5,0.40509]
[1756060376140,0.7577,4940.2,4939.0,0.40505]
[1756060376334,0.46762731,4940.1,4938.8,0.6998]
[1756060376542,0.6577,4938.9,4938.8,0.3363]
[1756060376842,0.40509,4938.6,4938.1,0.6998]
[1756060377144,0.6577,4938.6,4938.2,0.3363]
[1756060377347,0.6577,4938.6,4938.3,0.3363]
[1756060377533,0.74572,4939.4,4938.7,0.74137]
[1756060377846,0.40505,4939.1,4938.7,0.40507]
[1756060378036,0.40504,4939.2,4938.8,0.3635]
[1756060378240,0.72204,4939.2,4938.9,0.3363]
[1756060378441,0.72204,4939.2,4939.0,0.3363]
[1756060378643,0.317,4939.0,4938.9,0.3363]
[1756060379043,0.3407,4939.8,4939.3,0.3363]
[1756060379340,0.405,4939.8,4939.6,0.6998]
[1756060379547,1.06271,4939.6,4939.0,0.7116]
[1756060379743,0.6577,4939.1,4938.9,0.3363]
[1756060379945,0.6577,4939.8,4939.0,1.0479]
[1756060380243,0.40502,4939.5,4939.2,0.40503]
[1756060380543,0.1,4940.2,4939.2,0.40503]
[1756060380544,0.317,4940.1,4939.4,0.3363]
[1756060380749,0.46798193,4940.0,4939.4,0.3363]
[1756060380941,0.50496,4940.2,4939.8,0.40498]
[1756060381141,0.46795251,4940.1,4940.0,0.3363]
[1756060381341,0.1,4940.2,4940.0,0.3363]
[1756060381641,0.1,4940.2,4940.0,0.74127]
[1756060381642,0.417,4940.2,4940.0,0.74127]
[1756060381840,0.417,4940.2,4940.1,0.3363]
[1756060382045,0.7577,4940.2,4940.1,0.3363]
[1756060382245,0.7577,4940.2,4939.5,0.3363]
[1756060382449,0.40499,4939.8,4939.5,0.40501]
[1756060382755,0.1,4940.2,4938.8,0.40507]
[1756060382756,0.6577,4939.1,4938.8,0.40507]
[1756060382937,0.6577,4939.0,4938.9,0.40506]
[1756060383138,0.40509,4938.6,4938.5,0.3363]
[1756060383341,0.6577,4939.1,4937.8,0.6844]
[1756060383342,0.317,4939.0,4937.8,0.6844]
[1756060383547,0.317,4939.0,4937.8,0.3363]
[1756060383751,0.6577,4938.0,4937.8,0.3363]
[1756060383943,0.6577,4937.9,4937.8,0.3363]
[1756060384251,0.317,4938.3,4938.1,0.3363]
[1756060384440,0.3407,4938.8,4938.1,0.3635]
[1756060384637,0.40512,4938.3,4938.2,0.3363]
[1756060384841,0.40512,4938.3,4937.9,0.40514]
[1756060385050,0.6577,4938.2,4938.0,0.74143]
[1756060385250,0.6577,4938.2,4938.1,0.3363]
[1756060385546,0.6577,4937.9,4937.8,0.3363]
[1756060385940,0.2295,4938.7,4937.5,0.3481]
[1756060385941,0.3407,4937.7,4937.5,0.3363]
[1756060386139,0.40507,4938.9,4938.1,0.3481]
[1756060386348,0.87468268,4938.8,4938.4,1.0479]
[1756060386545,0.317,4939.2,4938.3,0.40511]
[1756060386546,0.46960268,4938.7,4938.6,1.0479]
[1756060386851,0.73428,4938.8,4938.6,0.3635]
[1756060387044,0.46960268,4938.7,4938.6,0.3635]
[1756060387247,0.40509,4938.6,4938.4,0.4051]
[1756060387645,0.40508,4938.8,4938.6,0.6713]
[1756060387845,0.6907,4939.7,4939.1,0.40504]
[1756060388148,0.6907,4939.1,4938.2,0.3312]
[1756060388351,0.3292,4938.8,4938.7,0.40507]
[1756060388646,0.3292,4938.8,4938.7,0.73667]
[1756060388847,0.3292,4938.8,4938.7,0.3316]
[1756060389048,4.0,4938.8,4937.8,0.40515]
[1756060389239,1.01266,4938.9,4937.9,0.3316]
[1756060389240,0.3292,4938.6,4937.9,0.3316]
[1756060389443,0.3615,4938.5,4937.9,0.3316]
[1756060389637,0.40516,4937.8,4937.7,0.3316]
[1756060389842,1.09586,4937.8,4937.7,0.3316]
[1756060390040,0.3292,4937.8,4937.7,0.3316]
[1756060390642,0.73433,4938.1,4937.8,0.6713]
[1756060390843,0.40516,4937.7,4937.1,0.6628]
[1756060391351,0.40516,4937.7,4937.2,0.4052]
[1756060391736,0.40516,4937.7,4937.5,0.3316]
[1756060391737,0.3292,4937.7,4937.5,0.3316]
[1756060391944,0.6907,4937.6,4936.9,0.3312]
[1756060392145,0.6907,4937.6,4937.0,0.3316]
[1756060392344,0.6907,4937.1,4937.0,0.3316]
[1756060392545,0.40522,4937.0,4936.4,0.3316]
[1756060392741,1.01298,4937.4,4935.5,0.3401]
[1756060392953,1.09603,4935.7,4935.6,0.18471082]
[1756060393344,0.6907,4935.2,4934.9,1.74687381]
[1756060393541,0.6907,4935.2,4935.0,0.18467604]
[1756060393753,0.40532,4935.9,4935.3,0.40536]
[1756060393940,0.40528,4936.2,4935.4,0.6713]
[1756060394144,0.3615,4935.9,4934.9,0.6628]
[1756060394350,0.3292,4935.8,4934.9,0.6628]
[1756060394653,0.40535,4935.5,4934.9,0.6628]
[1756060395552,0.40528,4936.3,4935.3,1.0029]
[1756060395746,0.3292,4936.5,4935.6,0.3401]
[1756060395944,0.40522,4937.0,4936.1,0.40529]
[1756060396145,0.3292,4937.1,4936.4,0.3316]
[1756060396345,0.6907,4937.9,4936.6,0.3316]
[1756060396551,0.3292,4937.4,4937.1,0.6628]
[1756060396846,0.3615,4937.9,4937.2,0.4052]
[1756060397048,0.40514,4938.0,4937.3,0.3316]
[1756060397252,0.4051,4938.4,4937.7,1.0029]
[1756060397451,0.40514,4938.0,4937.7,0.3316]
[1756060397745,0.6907,4937.8,4937.7,0.3316]
[1756060398051,0.6907,4938.5,4937.7,0.3316]
[1756060398545,0.6907,4938.5,4937.8,0.40515]
[1756060398852,0.3292,4938.9,4937.9,0.3316]
[1756060399057,0.6907,4938.5,4937.6,0.6717]
[1756060399240,1.0958,4938.5,4937.6,0.6717]
[1756060399445,0.6907,4938.5,4937.9,0.40514]
[1756060399748,0.4051,4938.4,4938.1,1.0029]
[1756060399944,0.4051,4938.4,4938.2,0.3316]
[1756060400150,0.3292,4938.3,4938.2,0.3316]
[1756060400652,0.6907,4938.3,4938.2,0.3316]
[1756060400848,0.6907,4938.3,4937.6,0.6713]
[1756060401049,0.40514,4938.0,4937.6,0.6628]
[1756060401248,0.6907,4937.7,4937.6,0.3316]
[1756060401446,0.40519,4937.4,4936.8,0.3316]
[1756060401844,0.4052,4937.2,4936.8,0.3316]
[1756060402046,0.3292,4937.1,4936.9,0.3316]
[1756060402246,0.3292,4937.1,4937.0,0.3316]
[1756060402446,0.40517,4937.6,4937.1,0.6713]
[1756060402645,0.40514,4938.0,4937.7,0.6713]
[1756060402848,0.9079,4938.6,4937.9,0.3316]
[1756060402849,0.3292,4938.6,4937.9,0.3316]
[1756060403043,0.3292,4938.6,4937.8,0.40515]
[1756060403044,0.40506,4939.0,4938.2,0.40512]
[1756060403248,0.3615,4939.1,4938.3,1.0029]
[1756060403444,0.4051,4938.5,4938.3,1.0029]
[1756060403647,0.40515,4937.9,4937.6,0.3316]
[1756060403841,0.40518,4937.5,4936.8,0.3312]
[1756060404051,0.3292,4937.2,4936.9,0.3312]
[1756060404242,0.3292,4937.2,4937.1,0.3316]
[1756060404441,0.6907,4937.2,4937.1,0.3316]
[1756060404646,0.40521,4937.1,4936.7,0.3401]
[1756060404952,0.6907,4936.9,4936.4,0.3312]
[1756060405156,0.6907,4936.8,4936.1,0.3316]
[1756060405349,0.40527,4936.4,4936.0,0.3401]
[1756060405651,0.6907,4936.3,4936.2,0.3316]
[1756060406143,0.3292,4936.3,4936.2,0.3316]
[1756060406348,0.4052,4937.2,4936.3,0.40527]
[1756060406548,0.4052,4937.2,4935.4,1.26077483]
[1756060406549,0.40522,4937.0,4936.5,0.3316]
[1756060406748,0.40522,4937.0,4936.6,0.6713]
[1756060406951,0.73444,4936.8,4936.7,0.3316]
[1756060407346,0.4052,4937.3,4936.7,0.3316]
[1756060407552,0.3292,4937.5,4936.9,0.3316]
[1756060407745,0.40519,4937.4,4935.9,0.0202]
[1756060407946,0.4052,4937.3,4936.1,1.0029]
[1756060408146,0.40514,4938.0,4937.3,0.6713]
[1756060408346,0.40514,4938.0,4937.4,0.3316]
[1756060408549,0.40514,4938.1,4937.4,0.73678]
[1756060408756,0.40512,4938.3,4937.6,0.6628]
[1756060409047,0.3292,4938.6,4937.8,0.3316]
[1756060409256,0.73429,4938.6,4937.8,0.3316]
[1756060409448,0.73429,4938.6,4937.9,0.3316]
[1756060409648,0.40507,4938.9,4938.3,0.6628]
[1756060409849,0.3292,4938.9,4937.5,0.40517]
[1756060410046,0.4051,4938.5,4938.0,0.40513]
[1756060410249,0.40511,4938.3,4938.2,0.3316]
[1756060410455,0.40508,4938.7,4938.4,0.3312]
[1756060410750,23.92138687,4941.4,4933.1,0.3316]
[1756060410751,20.26509,4936.1,4933.1,0.3316]
[1756060410950,20.26695,4935.6,4933.1,0.3316]
[1756060411147,0.40552,4933.4,4933.1,0.3316]
[1756060411350,1.01361,4934.3,4933.1,0.3316]
[1756060411552,0.40551,4933.5,4933.1,0.3316]
[1756060411753,0.40551,4933.4,4931.8,0.0202]
[1756060411953,1.01355,4934.6,4933.3,0.3316]
[1756060412153,1.01359,4934.4,4932.7,0.40557]
[1756060412353,0.55974137,4934.3,4932.5,0.73718]
[1756060412555,0.55974137,4934.3,4932.3,1.0029]
[1756060412748,0.4055,4933.6,4932.7,0.40556]
[1756060412947,0.40552,4933.4,4932.9,1.0029]
[1756060413146,0.40551,4933.5,4932.5,0.6628]
[1756060413352,0.40549,4933.8,4932.7,0.6717]
[1756060413554,0.40549,4933.8,4933.1,0.6713]
[1756060413756,0.40546,4934.1,4933.4,0.6628]
[1756060413952,0.40546,4934.1,4933.7,0.3401]
[1756060414152,0.40546,4934.1,4933.9,0.6717]
[1756060414356,0.40544,4934.4,4934.0,1.0029]
[1756060414655,0.40545,4934.2,4934.1,1.0029]
[1756060415157,1.01341,4935.3,4932.3,29.2032]
[1756060415158,0.0008,4935.2,4932.5,0.0202]
[1756060415451,0.40543,4934.4,4932.5,0.0202]
[1756060415654,0.40539,4934.9,4934.0,1.0029]
[1756060415958,0.40541,4934.7,4933.3,0.3316]
[1756060416255,0.4054,4934.8,4933.9,0.40547]
[1756060416562,0.40545,4934.2,4934.1,0.3316]
[1756060416756,0.40545,4934.2,4934.1,0.6628]
[1756060417359,0.40551,4933.5,4933.4,0.67]
[1756060417660,0.40661,4933.5,4933.4,0.7113]
[1756060417852,0.40661,4933.5,4933.4,0.3563]
[1756060418453,0.0011,4933.5,4933.4,0.3563]
[1756060418861,0.40548,4933.9,4933.0,0.40555]
[1756060419158,0.40543,4934.4,4933.4,0.3563]
[1756060419354,0.40547,4934.0,4933.1,0.40553]
[1756060419555,0.40545,4934.2,4933.3,0.40552]
[1756060419755,0.40548,4933.8,4932.9,0.40555]
[1756060419957,0.40657,4934.0,4933.0,1.07554]
[1756060420157,0.40541,4934.8,4933.8,0.40548]
[1756060420363,0.40542,4934.6,4934.0,0.7113]
[1756060420660,0.0011,4935.3,4934.4,0.7113]
[1756060420860,0.40539,4935.0,4934.5,0.3563]
[1756060421057,0.40541,4934.7,4934.6,0.7113]
[1756060421260,0.0554,4934.7,4934.0,1.0263]
[1756060421561,0.0554,4934.7,4934.2,0.7113]
[1756060421562,0.40545,4934.3,4934.2,0.7113]
[1756060421860,1.01347,4935.0,4931.9,1.01408]
[1756060422065,0.0011,4934.2,4933.1,0.7113]
[1756060422357,0.40552,4933.4,4933.2,0.7113]
[1756060422558,0.40552,4933.4,4933.3,0.7113]
[1756060422959,0.40662,4933.4,4933.3,0.3563]
[1756060423363,0.0011,4934.2,4933.3,0.6713]
[1756060423762,0.0011,4934.2,4933.4,0.7113]
[1756060424165,0.40548,4933.8,4933.4,0.7113]
[1756060424358,0.0011,4934.2,4933.5,1.0263]
[1756060424665,0.40546,4934.1,4932.7,0.0202]
[1756060424865,0.40546,4934.1,4932.9,1.0263]
[1756060425066,0.40545,4934.2,4933.7,0.40548]
[1756060425363,0.40543,4934.5,4934.2,0.67]
[1756060425664,0.0011,4935.4,4934.0,1.01366]
[1756060425854,0.97086702,4935.3,4935.2,0.7113]
[1756060426057,0.40536,4935.3,4935.2,0.7113]
[1756060426560,0.40646,4935.3,4935.2,0.3563]
[1756060426859,0.40541,4934.7,4934.6,1.0263]
[1756060427260,4.0554,4934.7,4933.9,1.0263]
[1756060427456,0.0554,4934.7,4933.9,1.0263]
[1756060427658,0.40656,4934.1,4934.0,0.3563]
[1756060427863,0.40551,4933.5,4933.3,0.67]
[1756060428055,0.4055,4933.6,4933.4,0.3563]
[1756060428263,0.0536,4934.3,4932.6,0.3563]
[1756060428460,0.40555,4933.0,4932.7,1.0263]
[1756060428763,0.40556,4932.8,4932.7,0.315]
[1756060428961,1.01352,4934.8,4932.9,1.0263]
[1756060429170,0.40546,4934.1,4933.1,0.67]
[1756060429367,0.56575231,4934.0,4933.4,0.40551]
[1756060429662,0.40543,4934.4,4933.7,0.315]
[1756060429965,0.40545,4934.2,4933.5,0.4055]
[1756060430263,0.40542,4934.5,4933.7,0.40548]
[1756060430471,0.97121516,4934.4,4933.9,0.3563]
[1756060430767,0.40545,4934.2,4934.1,1.0263]
[1756060430960,0.97252428,4934.2,4934.1,0.3563]
[1756060431863,0.97142428,4934.2,4934.1,0.3563]
[1756060432070,0.40541,4934.7,4934.1,1.0263]
[1756060432273,0.97161725,4934.6,4934.2,1.0263]
[1756060432564,0.03527875,4936.6,4935.3,0.6902]
[1756060432770,2.02559,4938.3,4935.3,0.6902]
[1756060432771,0.5993,4937.5,4936.2,0.3563]
[1756060432972,0.40527,4936.4,4936.3,0.355]
[1756060433162,0.40524,4936.7,4936.3,0.67]
[1756060433358,0.40526,4936.5,4935.9,0.67]
[1756060433566,0.40528,4936.3,4936.2,0.3563]
[1756060433964,1.00458,4936.3,4936.2,0.3563]
[1756060434164,0.271,4936.3,4935.1,0.355]
[1756060434371,1.01328,4935.9,4935.1,0.355]
[1756060434568,0.3283,4935.0,4934.9,0.3563]
[1756060434966,0.5993,4935.0,4934.5,0.355]
[1756060435165,1.01338,4935.4,4934.6,0.3563]
[1756060435166,0.4054,4934.8,4934.6,0.3563]
[1756060435470,0.3283,4934.7,4934.6,0.3563]
[1756060436368,0.5993,4934.7,4934.0,0.3563]
[1756060436570,0.40542,4934.5,4933.9,0.40547]
[1756060436772,0.40544,4934.4,4934.2,1.0263]
[1756060436963,0.40544,4934.4,4933.7,0.3563]
[1756060436964,0.40548,4933.8,4933.7,0.3563]
[1756060437167,0.40548,4933.8,4933.7,1.0263]
[1756060437875,0.40548,4933.9,4933.8,0.355]
[1756060438175,1.00478,4933.9,4933.8,0.3563]
[1756060438379,0.40548,4933.9,4933.8,0.3563]
[1756060438675,0.40548,4933.9,4933.8,1.0263]
[1756060438872,0.40548,4933.9,4933.8,0.3563]
[1756060439180,1.00478,4933.9,4933.8,0.3563]
[1756060439874,0.73378,4933.9,4933.8,0.3563]
[1756060440069,0.40548,4933.9,4933.8,0.7113]
[1756060440272,0.40545,4934.2,4933.9,1.0263]
[1756060440477,0.40547,4934.0,4933.5,0.4055]
[1756060440674,0.40547,4934.0,4933.3,0.40552]
[1756060440878,0.40548,4933.8,4933.1,21.12553]
[1756060441178,0.5993,4934.6,4933.4,0.40551]
[1756060441372,0.5993,4934.6,4933.6,0.3563]
[1756060442076,0.40546,4934.1,4933.6,0.3563]
[1756060442269,0.73376,4934.1,4933.7,0.7113]
[1756060442475,0.73376,4934.1,4933.8,0.355]
[1756060442671,0.40547,4934.0,4933.9,0.3563]
[1756060442871,0.3283,4934.1,4933.9,0.7113]
[1756060443176,0.40545,4934.2,4934.1,0.3563]
[1756060443565,0.40545,4934.3,4934.1,0.355]
[1756060443771,0.40545,4934.3,4934.2,0.3563]
[1756060444178,1.29777822,4934.3,4934.2,0.3563]
[1756060444477,0.3283,4933.5,4933.2,0.3563]
[1756060444672,1.01367,4934.0,4933.2,0.3563]
[1756060444673,0.3283,4933.3,4933.2,0.3563]
[1756060444873,0.89235583,4933.3,4933.2,0.3563]
[1756060445370,1.16335583,4933.3,4933.2,0.3563]
[1756060445772,1.16335583,4933.3,4932.7,0.6713]
[1756060445970,0.40554,4933.1,4932.7,0.67]
[1756060446170,0.96960583,4933.0,4932.8,1.0263]
[1756060446371,0.40555,4933.0,4932.6,0.40558]
[1756060446571,0.40556,4932.9,4932.4,0.40559]
[1756060446874,0.3283,4933.3,4932.6,0.7254]
[1756060447071,0.40548,4933.9,4933.3,0.40552]
[1756060447266,0.95761898,4933.8,4933.5,0.7254]
[1756060447468,0.40547,4934.0,4932.5,1.03416]
[1756060447669,0.40547,4934.0,4932.4,0.23518453]
[1756060447670,0.55206778,4933.9,4933.5,0.4055]
[1756060447872,0.2615,4935.3,4933.4,0.3822]
[1756060448075,0.2615,4935.3,4933.2,0.0202]
[1756060448076,0.40538,4935.1,4934.9,1.0895]
[1756060448277,0.895137,4935.0,4934.9,0.7463]
[1756060448469,1.156637,4935.0,4934.3,0.3822]
[1756060448673,0.40542,4934.5,4934.4,0.3641]
[1756060448873,0.2615,4934.5,4934.4,0.3641]
[1756060449073,0.2615,4935.1,4934.4,0.61707381]
[1756060449274,0.55019451,4935.0,4934.7,0.7463]
[1756060449579,1.00999,4935.0,4934.8,0.25291596]
[1756060449879,0.40539,4935.0,4934.9,0.25291596]
[1756060450178,0.3431,4934.9,4934.3,0.3641]
[1756060450377,0.6046,4934.7,4934.5,0.3641]
[1756060450572,0.6046,4934.7,4934.6,0.61706196]
[1756060450974,4.6479,4934.7,4934.6,0.25296196]
[1756060451681,4.6479,4934.7,4933.9,0.3641]
[1756060451682,0.3431,4934.6,4933.9,0.3641]
[1756060451877,0.3431,4934.6,4932.9,1.01387]
[1756060451878,0.0433,4934.1,4934.0,0.25301905]
[1756060452077,0.6479,4934.1,4934.0,0.25301905]
[1756060452279,0.6479,4934.1,4933.1,0.3641]
[1756060452477,0.55026672,4934.0,4933.2,0.25313176]
[1756060452775,0.40552,4933.4,4933.3,0.3641]
[1756060452981,0.40548,4933.9,4933.4,0.40551]
[1756060453282,0.74859,4933.7,4933.6,0.3641]
[1756060453868,0.40553,4933.2,4933.0,0.3822]
[1756060454079,0.3431,4933.2,4933.1,0.3641]
[1756060454277,0.40552,4933.4,4933.1,0.7463]
[1756060454478,0.40553,4933.3,4933.2,0.3641]
[1756060454668,0.40553,4933.3,4933.2,0.7463]
[1756060454874,0.40549,4933.8,4932.5,1.0895]
[1756060455074,0.3431,4934.3,4933.7,1.0895]
[1756060455275,0.3431,4934.3,4932.7,1.01393]
[1756060455276,0.55021457,4934.2,4933.5,1.495]
[1756060455477,0.40549,4933.7,4933.6,0.3641]
[1756060455777,0.3431,4934.3,4933.6,1.0895]
[1756060456079,0.55016438,4934.2,4933.8,0.7254]
[1756060456382,0.55016438,4934.2,4933.0,1.01386]
[1756060456383,0.40543,4934.4,4934.1,0.7254]
[1756060456578,0.55017167,4934.3,4934.2,1.0895]
[1756060456980,0.55017167,4934.3,4934.2,5.0895]
[1756060457275,0.3431,4936.2,4935.6,0.40533]
[1756060457474,0.40533,4935.7,4935.5,0.7254]
[1756060457678,0.55009914,4935.6,4935.4,0.40535]
[1756060457874,0.55009914,4935.5,4935.4,0.40535]
[1756060458078,0.2615,4935.9,4934.1,1.01365]
[1756060458272,0.3431,4935.8,4935.0,0.7463]
[1756060458473,0.40537,4935.2,4935.1,0.3641]
[1756060458669,0.3431,4933.8,4933.0,0.7254]
[1756060458882,0.40551,4933.5,4932.9,0.7254]
[1756060459070,0.40552,4933.4,4933.0,1.0895]
[1756060459276,0.2615,4934.1,4932.6,1.0895]
[1756060459477,0.40549,4933.8,4933.2,0.40552]
[1756060459872,0.40549,4933.7,4933.6,0.3641]
[1756060460070,0.40551,4933.5,4932.9,0.74875]
[1756060460271,1.0136,4934.4,4932.9,0.74875]
[1756060460272,0.40549,4933.7,4933.0,0.76964]
[1756060460481,0.40549,4933.7,4933.1,0.40553]
[1756060461182,0.40549,4933.7,4933.3,1.0895]
[1756060461376,0.40549,4933.7,4933.4,0.7254]
[1756060461686,0.40549,4933.7,4933.3,0.40552]
[1756060461687,0.3431,4933.7,4933.3,0.40552]
[1756060461882,0.3431,4933.7,4933.6,0.7463]
[1756060462183,0.2615,4934.0,4933.6,0.7463]
[1756060462373,0.40544,4934.3,4933.7,1.49499]
[1756060462577,0.40544,4934.3,4933.7,1.0895]
[1756060462974,0.40545,4934.2,4933.9,0.40547]
[1756060463180,0.3431,4934.0,4933.9,0.3641]
[1756060463383,0.6046,4934.0,4933.9,0.3641]
[1756060464685,0.3431,4934.0,4933.9,0.7463]
[1756060465284,1.01003,4934.5,4933.9,1.0895]
[1756060465588,0.55084984,4934.4,4934.2,0.40545]
[1756060465774,0.3431,4934.4,4934.3,0.7463]
[1756060465980,0.89393677,4934.4,4934.3,0.7463]
[1756060466479,0.3431,4935.1,4934.4,0.7463]
[1756060466674,0.55088751,4935.0,4934.8,0.4054]
[1756060466884,0.2615,4935.3,4935.2,1.15167]
[1756060467085,0.55083719,4935.5,4935.2,0.40537]
[1756060467285,0.55083719,4935.4,4935.3,0.7463]
[1756060467786,0.55083719,4935.4,4935.3,1.0895]
[1756060467984,1.49125691,4937.9,4935.5,0.3641]
[1756060468184,1.8199857,4938.5,4935.3,0.26142894]
[1756060468185,1.45480774,4938.5,4938.4,0.4051]
[1756060468490,0.3431,4939.7,4939.5,0.3641]
[1756060468779,0.3767,4940.3,4939.6,0.405]
[1756060468980,0.6915,4940.7,4940.0,0.7463]
[1756060469186,0.6915,4940.7,4940.1,0.31623975]
[1756060469384,1.1682,4940.2,4940.1,0.31623975]
[1756060469682,1.1682,4940.2,4940.1,0.31499823]
[1756060470280,24.7082,4940.2,4938.0,0.3641]
[1756060470484,1.0682,4938.2,4938.1,0.31661591]
[1756060470684,1.47332,4938.2,4937.3,0.3641]
[1756060470884,1.0682,4938.2,4937.3,0.3641]
[1756060471085,1.0682,4938.2,4937.1,0.3822]
[1756060471086,0.3431,4938.1,4937.1,0.3822]
[1756060471286,0.40519,4937.4,4936.5,0.3641]
[1756060471590,1.0682,4937.5,4936.5,0.3641]
[1756060471789,1.0682,4937.5,4937.4,0.035]
[1756060472586,0.1,4940.2,4939.9,0.40498]
[1756060473085,0.3431,4941.9,4940.3,0.40494]
[1756060473282,0.3431,4942.7,4941.3,0.7463]
[1756060473486,0.3431,4942.7,4941.3,1.15116]
[1756060473487,0.40478,4942.4,4941.3,1.15116]
[1756060473686,0.3767,4942.6,4941.7,0.40483]
[1756060473983,0.3431,4943.9,4941.9,0.0202]
[1756060474188,0.3767,4944.5,4942.3,0.3641]
[1756060474392,0.3431,4944.4,4942.4,0.78698]
[1756060474581,1.09612,4944.4,4942.4,0.3822]
[1756060474782,0.3484,4945.4,4943.1,0.3641]
[1756060474982,0.3633,4945.3,4944.4,0.3641]
[1756060475293,0.4047,4943.3,4943.0,0.3822]
[1756060475478,0.3431,4943.1,4943.0,0.7463]
[1756060475891,0.3431,4943.1,4940.5,2.63285269]
[1756060475892,0.3484,4942.7,4941.8,0.3822]
[1756060476092,0.75315,4942.7,4941.8,0.3822]
[1756060476289,0.4048,4942.2,4941.8,0.3822]
[1756060476587,0.4048,4942.2,4941.5,0.3641]
[1756060476588,0.40474,4942.9,4941.7,0.7463]
[1756060476795,0.40476,4942.7,4941.7,0.7463]
[1756060477096,0.40477,4942.5,4941.7,0.7463]
[1756060477587,0.40477,4942.5,4939.9,1.01246]
[1756060477588,0.3707,4942.6,4940.9,0.7572]
[1756060477892,0.40471,4943.2,4941.8,0.3734]
[1756060478084,0.40471,4943.2,4941.9,0.3838]
[1756060478283,0.40473,4943.0,4941.9,0.3838]
[1756060478492,0.40478,4942.4,4941.9,0.3838]
[1756060478690,0.40478,4942.4,4940.8,0.3734]
[1756060478887,0.40477,4942.5,4941.6,0.40484]
[1756060479188,0.40482,4941.9,4940.8,0.7572]
[1756060479891,0.3707,4942.1,4940.8,0.7572]
[1756060480188,0.40489,4941.1,4940.8,0.7572]
[1756060480388,0.40489,4941.1,4940.8,0.3838]
[1756060480591,0.40492,4940.7,4940.3,0.3838]
[1756060480791,0.40495,4940.4,4939.9,0.3734]
[1756060480985,0.4051,4938.5,4938.4,0.18991285]
[1756060481186,0.3671,4938.9,4937.9,0.7572]
[1756060481391,0.40503,4939.3,4937.9,0.3734]
[1756060481590,0.40503,4939.3,4937.1,1.01302]
[1756060481591,0.40502,4939.5,4938.3,0.40511]
[1756060481791,1.01235,4940.5,4938.8,0.7572]
[1756060481792,1.08,4940.5,4938.8,0.7572]
[1756060482096,0.40506,4939.0,4938.1,0.7572]
[1756060482296,0.3707,4939.5,4938.1,0.7572]
[1756060482489,0.3422,4939.4,4938.1,0.7572]
[1756060482792,0.7378,4939.5,4937.3,29.173]
[1756060482793,0.40502,4939.5,4938.5,0.7572]
[1756060482986,0.40502,4939.5,4938.6,0.78889]
[1756060483388,0.40502,4939.5,4938.8,0.40507]
[1756060483589,0.40501,4939.6,4938.8,0.40507]
[1756060483787,0.40504,4939.2,4938.6,0.3838]
[1756060483988,0.40504,4939.2,4937.3,29.1932]
[1756060483989,0.40506,4939.0,4937.5,0.7572]
[1756060484184,0.40511,4938.4,4937.5,0.7572]
[1756060484386,0.3671,4939.1,4938.7,0.78887]
[1756060484589,0.3671,4939.1,4937.6,1.01292]
[1756060484590,0.40533,4935.7,4934.9,0.3734]
[1756060484888,0.7093,4935.1,4935.0,0.46385941]
[1756060485195,0.7093,4935.1,4935.0,0.19005183]
[1756060485700,0.7093,4935.1,4934.4,0.40543]
[1756060485886,0.3422,4936.6,4933.1,1.01385]
[1756060486091,0.40536,4935.4,4934.9,0.3734]
[1756060486388,0.3707,4936.4,4935.3,0.40536]
[1756060486594,0.3707,4936.4,4934.9,0.3734]
[1756060486595,0.4053,4936.1,4935.1,0.40537]
[1756060487092,0.3671,4936.4,4935.6,0.77873]
[1756060487284,0.3671,4936.4,4936.0,0.40529]
[1756060487484,29.9058,4937.1,4936.1,0.7196]
[1756060487884,29.9058,4937.1,4936.4,0.40527]
[1756060488089,29.9058,4937.1,4936.3,0.40527]
[1756060489089,0.40522,4937.0,4936.1,0.7196]
[1756060489297,0.40525,4936.7,4935.8,0.40531]
[1756060489485,0.3671,4936.6,4936.5,0.40526]
[1756060489686,0.3422,4937.3,4935.8,0.3462]
[1756060489892,0.3671,4936.6,4935.8,0.75151]
[1756060490098,0.3671,4936.6,4936.0,0.4053]
[1756060490297,0.7093,4936.5,4936.2,0.40528]
[1756060490496,1.03342,4936.2,4934.1,0.09322781]
[1756060490791,0.40541,4934.7,4934.1,0.09322781]
[1756060490992,1.08,4934.2,4934.1,0.09322781]
[1756060491686,0.7093,4934.2,4934.1,0.09322781]
[1756060492392,0.3671,4934.2,4934.1,0.09322781]
[1756060492593,0.3671,4934.2,4934.1,0.46662781]
[1756060493101,0.7093,4934.9,4934.1,0.46662781]
[1756060493299,0.3671,4935.7,4934.8,0.4054]
[1756060493591,0.3671,4935.7,4934.7,0.7196]
[1756060493592,0.40535,4935.4,4934.7,0.3734]
[1756060493795,0.74754,4935.5,4934.7,0.3734]
[1756060494700,0.40536,4935.3,4934.7,0.3734]
[1756060495693,0.3422,4935.5,4934.7,0.3734]
[1756060495694,0.40537,4935.1,4934.7,0.3734]
[1756060495898,0.77247,4935.1,4934.1,0.87207781]
[1756060496096,0.77247,4935.1,4934.1,0.46662781]
[1756060496097,0.3671,4935.1,4934.1,0.46662781]
[1756060496299,0.40542,4934.6,4934.1,0.46662781]
[1756060496603,0.3671,4934.3,4934.1,0.09322781]
[1756060496901,0.3671,4934.2,4934.1,0.09322781]
[1756060497101,0.40537,4935.2,4934.3,0.40544]